[Event "Titled Tuesday Blitz May 4 2021"]
[White "Niyazgulova, Marina"]
[Black "Guimaraes, Diogo Duarte"]
[WhiteFideId "24142573"]
[BlackFideId "2112450"]
[WhiteElo "2087"]
[BlackElo "2263"]
[Result "1-0"]
[Round "04"]
[TimeControl "180+1"]
[Date "2021.05.04"]
[WhiteClock "0:01:11"]
[BlackClock "0:00:07"]

1. d4 {[%clk 0:03:00]}  f5 {[%clk 0:01:53]} 2. c4 {[%clk 0:02:59]}  Nf6 {[%clk 0:01:53]} 3. Nc3 {[%clk 0:02:59]}  e6 {[%clk 0:01:53]} 4. g3 {[%clk 0:02:59]}  Be7 {[%clk 0:01:53]} 5. Bg2 {[%clk 0:03:00]}  O-O {[%clk 0:01:54]} 6. Nf3 {[%clk 0:02:59]}  d5 {[%clk 0:01:52]} 7. O-O {[%clk 0:02:58]}  c6 {[%clk 0:01:52]} 8. Bf4 {[%clk 0:02:58]}  Nbd7 {[%clk 0:01:51]} 9. Qc2 {[%clk 0:02:56]}  Ne4 {[%clk 0:01:51]} 10. Ne5 {[%clk 0:02:52]}  Nxe5 {[%clk 0:01:51]} 11. Bxe5 {[%clk 0:02:52]}  Bf6 {[%clk 0:01:50]} 12. f3 {[%clk 0:02:48]}  Bxe5 {[%clk 0:01:47]} 13. dxe5 {[%clk 0:02:46]}  Qb6+ {[%clk 0:01:46]} 14. e3 {[%clk 0:02:33]}  Qxe3+ {[%clk 0:01:45]} 15. Kh1 {[%clk 0:02:34]}  Nxc3 {[%clk 0:01:45]} 16. Qxc3 {[%clk 0:02:29]}  Qxc3 {[%clk 0:01:42]} 17. bxc3 {[%clk 0:02:29]}  dxc4 {[%clk 0:01:23]} 18. Rfd1 {[%clk 0:02:28]}  b5 {[%clk 0:01:15]} 19. Rd6 {[%clk 0:02:27]}  Kf7 {[%clk 0:01:09]} 20. Rxc6 {[%clk 0:02:26]}  Rd8 {[%clk 0:01:07]} 21. a4 {[%clk 0:02:17]}  bxa4 {[%clk 0:00:58]} 22. Rxc4 {[%clk 0:02:13]}  a3 {[%clk 0:00:56]} 23. h4 {[%clk 0:02:08]}  Rb8 {[%clk 0:00:50]} 24. Rxa3 {[%clk 0:02:03]}  Rd2 {[%clk 0:00:43]} 25. Rxa7+ {[%clk 0:02:00]}  Kg6 {[%clk 0:00:42]} 26. Rcc7 {[%clk 0:01:58]}  f4 {[%clk 0:00:25]} 27. g4 {[%clk 0:01:51]}  Bd7 {[%clk 0:00:20]} 28. Rxd7 {[%clk 0:01:49]}  Rb1+ {[%clk 0:00:20]} 29. Kh2 {[%clk 0:01:47]}  Rxd7 {[%clk 0:00:21]} 30. Rxd7 {[%clk 0:01:46]}  Re1 {[%clk 0:00:22]} 31. Rd4 {[%clk 0:01:38]}  Rxe5 {[%clk 0:00:21]} 32. Rxf4 {[%clk 0:01:38]}  Re3 {[%clk 0:00:18]} 33. c4 {[%clk 0:01:36]}  Rc3 {[%clk 0:00:17]} 34. Kg3 {[%clk 0:01:35]}  h6 {[%clk 0:00:17]} 35. h5+ {[%clk 0:01:32]}  Kh7 {[%clk 0:00:17]} 36. Re4 {[%clk 0:01:31]}  g5 {[%clk 0:00:16]} 37. hxg6+ {[%clk 0:01:30]}  Kg7 {[%clk 0:00:16]} 38. Bf1 {[%clk 0:01:29]}  Kf6 {[%clk 0:00:15]} 39. g7 {[%clk 0:01:29]}  Kxg7 {[%clk 0:00:16]} 40. Rxe6 {[%clk 0:01:29]}  Rc1 {[%clk 0:00:17]} 41. Bd3 {[%clk 0:01:26]}  Rd1 {[%clk 0:00:16]} 42. Be4 {[%clk 0:01:26]}  Rc1 {[%clk 0:00:16]} 43. Rc6 {[%clk 0:01:26]}  Rg1+ {[%clk 0:00:13]} 44. Kf2 {[%clk 0:01:25]}  Rc1 {[%clk 0:00:14]} 45. c5 {[%clk 0:01:25]}  Ra1 {[%clk 0:00:14]} 46. Rc7+ {[%clk 0:01:24]}  Kf6 {[%clk 0:00:12]} 47. Rh7 {[%clk 0:01:23]}  Kg5 {[%clk 0:00:11]} 48. c6 {[%clk 0:01:20]}  Rc1 {[%clk 0:00:10]} 49. c7 {[%clk 0:01:19]}  Rc3 {[%clk 0:00:08]} 50. Bb7 {[%clk 0:01:16]}  Kf4 {[%clk 0:00:06]} 51. Rf7+ {[%clk 0:01:15]}  Kg5 {[%clk 0:00:05]} 52. c8=Q {[%clk 0:01:14]}  Rxc8 {[%clk 0:00:06]} 53. Bxc8 {[%clk 0:01:14]}  h5 {[%clk 0:00:07]} 54. Rf5+ {[%clk 0:01:11]} 1-0


[Site "https://www.chess.com"]

[Event "Titled Tuesday Blitz May 4 2021"]
[White "Nouri, Alekhine"]
[Black "Loy, Konstantin"]
[WhiteFideId "5216184"]
[BlackFideId "14122499"]
[WhiteElo "1894"]
[BlackElo "2084"]
[Result "1-0"]
[Round "04"]
[TimeControl "180+1"]
[Date "2021.05.04"]
[WhiteClock "0:02:32"]
[BlackClock "0:00:07"]

1. e4 {[%clk 0:03:00]}  c5 {[%clk 0:02:58]} 2. Nc3 {[%clk 0:03:01]}  Nc6 {[%clk 0:02:57]} 3. Bb5 {[%clk 0:03:01]}  Nd4 {[%clk 0:02:57]} 4. Nf3 {[%clk 0:03:00]}  g6 {[%clk 0:02:57]} 5. Nxd4 {[%clk 0:03:01]}  cxd4 {[%clk 0:02:57]} 6. Ne2 {[%clk 0:03:01]}  Bg7 {[%clk 0:02:56]} 7. Bc4 {[%clk 0:03:02]}  e6 {[%clk 0:02:49]} 8. d3 {[%clk 0:03:01]}  Ne7 {[%clk 0:02:49]} 9. O-O {[%clk 0:03:00]}  O-O {[%clk 0:02:48]} 10. f3 {[%clk 0:03:00]}  d5 {[%clk 0:02:47]} 11. Bb3 {[%clk 0:03:00]}  dxe4 {[%clk 0:02:21]} 12. fxe4 {[%clk 0:03:00]}  Nc6 {[%clk 0:02:12]} 13. Nf4 {[%clk 0:02:58]}  Na5 {[%clk 0:02:05]} 14. Qf3 {[%clk 0:02:58]}  Nxb3 {[%clk 0:02:04]} 15. axb3 {[%clk 0:02:59]}  e5 {[%clk 0:01:52]} 16. Nd5 {[%clk 0:02:57]}  Be6 {[%clk 0:01:52]} 17. Nf6+ {[%clk 0:02:57]}  Bxf6 {[%clk 0:01:47]} 18. Qxf6 {[%clk 0:02:58]}  Qxf6 {[%clk 0:01:47]} 19. Rxf6 {[%clk 0:02:59]}  Kg7 {[%clk 0:01:47]} 20. Rf2 {[%clk 0:02:59]}  a6 {[%clk 0:01:40]} 21. Bd2 {[%clk 0:02:55]}  Rac8 {[%clk 0:01:09]} 22. Bb4 {[%clk 0:02:54]}  Rfd8 {[%clk 0:01:09]} 23. Be7 {[%clk 0:02:53]}  Rd7 {[%clk 0:01:04]} 24. Bf6+ {[%clk 0:02:52]}  Kg8 {[%clk 0:01:01]} 25. Bxe5 {[%clk 0:02:53]}  f5 {[%clk 0:00:51]} 26. exf5 {[%clk 0:02:52]}  Bxf5 {[%clk 0:00:49]} 27. Re1 {[%clk 0:02:52]}  Re8 {[%clk 0:00:47]} 28. Rfe2 {[%clk 0:02:51]}  Rde7 {[%clk 0:00:46]} 29. h3 {[%clk 0:02:51]}  h5 {[%clk 0:00:44]} 30. Kf2 {[%clk 0:02:51]}  Rf7 {[%clk 0:00:37]} 31. Kg3 {[%clk 0:02:50]}  Rfe7 {[%clk 0:00:33]} 32. Kf4 {[%clk 0:02:47]}  Rf7 {[%clk 0:00:32]} 33. Kg5 {[%clk 0:02:48]}  Rfe7 {[%clk 0:00:30]} 34. g4 {[%clk 0:02:47]}  hxg4 {[%clk 0:00:27]} 35. hxg4 {[%clk 0:02:48]}  Bd7 {[%clk 0:00:21]} 36. c3 {[%clk 0:02:32]}  dxc3 {[%clk 0:00:13]} 37. bxc3 {[%clk 0:02:33]}  Bc6 {[%clk 0:00:08]} 38. d4 {[%clk 0:02:32]}  Re6 {[%clk 0:00:07]} 39. Rh2 {[%clk 0:02:32]} 1-0


[Site "https://www.chess.com"]

[Event "Titled Tuesday Blitz May 4 2021"]
[White "Obsivac, Josef"]
[Black "Antonio, Jorge Carlos"]
[WhiteFideId "303690"]
[BlackFideId "113190"]
[WhiteElo "2199"]
[BlackElo "2247"]
[Result "1-0"]
[Round "04"]
[TimeControl "180+1"]
[Date "2021.05.04"]
[WhiteClock "0:00:19"]
[BlackClock "0:00:11"]

1. d4 {[%clk 0:03:00]}  d5 {[%clk 0:02:57]} 2. c4 {[%clk 0:03:00]}  c6 {[%clk 0:02:57]} 3. Nf3 {[%clk 0:03:00]}  Nf6 {[%clk 0:02:57]} 4. Nc3 {[%clk 0:03:00]}  g6 {[%clk 0:02:55]} 5. Bg5 {[%clk 0:02:58]}  Bg7 {[%clk 0:02:55]} 6. Bxf6 {[%clk 0:02:57]}  Bxf6 {[%clk 0:02:54]} 7. cxd5 {[%clk 0:02:57]}  cxd5 {[%clk 0:02:54]} 8. Qb3 {[%clk 0:02:57]}  e6 {[%clk 0:02:52]} 9. e3 {[%clk 0:02:54]}  O-O {[%clk 0:02:51]} 10. Be2 {[%clk 0:02:47]}  b6 {[%clk 0:02:51]} 11. a4 {[%clk 0:02:43]}  Ba6 {[%clk 0:02:48]} 12. Nb5 {[%clk 0:02:42]}  Nc6 {[%clk 0:02:43]} 13. O-O {[%clk 0:02:41]}  Na5 {[%clk 0:02:43]} 14. Qa2 {[%clk 0:02:34]}  Bxb5 {[%clk 0:02:38]} 15. axb5 {[%clk 0:02:30]}  Rc8 {[%clk 0:02:37]} 16. Rfc1 {[%clk 0:02:27]}  Qd6 {[%clk 0:02:33]} 17. Nd2 {[%clk 0:02:14]}  Qb4 {[%clk 0:02:29]} 18. Nf3 {[%clk 0:01:57]}  h5 {[%clk 0:02:27]} 19. g3 {[%clk 0:01:54]}  Nb3 {[%clk 0:02:19]} 20. Rxc8 {[%clk 0:01:51]}  Rxc8 {[%clk 0:02:18]} 21. Qa3 {[%clk 0:01:38]}  Qxa3 {[%clk 0:02:00]} 22. Rxa3 {[%clk 0:01:37]}  Nc1 {[%clk 0:01:51]} 23. Bf1 {[%clk 0:01:33]}  Rc7 {[%clk 0:01:46]} 24. Kg2 {[%clk 0:01:09]}  Be7 {[%clk 0:01:45]} 25. Rc3 {[%clk 0:01:06]}  Rxc3 {[%clk 0:01:43]} 26. bxc3 {[%clk 0:01:06]}  Na2 {[%clk 0:01:33]} 27. c4 {[%clk 0:01:06]}  dxc4 {[%clk 0:01:30]} 28. Bxc4 {[%clk 0:01:06]}  Nb4 {[%clk 0:01:29]} 29. Ne5 {[%clk 0:01:04]}  Bd6 {[%clk 0:01:20]} 30. f4 {[%clk 0:00:59]}  Bxe5 {[%clk 0:01:14]} 31. fxe5 {[%clk 0:00:57]}  Kf8 {[%clk 0:01:15]} 32. Kf3 {[%clk 0:00:56]}  Ke7 {[%clk 0:01:14]} 33. Kf4 {[%clk 0:00:56]}  Nc2 {[%clk 0:01:10]} 34. Bd3 {[%clk 0:00:52]}  Nb4 {[%clk 0:01:08]} 35. Be4 {[%clk 0:00:51]}  a5 {[%clk 0:01:04]} 36. bxa6 {[%clk 0:00:50]}  Nxa6 {[%clk 0:01:04]} 37. Bc6 {[%clk 0:00:44]}  Nc7 {[%clk 0:01:01]} 38. e4 {[%clk 0:00:42]}  b5 {[%clk 0:01:01]} 39. d5 {[%clk 0:00:42]}  exd5 {[%clk 0:00:58]} 40. exd5 {[%clk 0:00:41]}  Kd8 {[%clk 0:00:44]} 41. d6 {[%clk 0:00:38]}  Ne6+ {[%clk 0:00:43]} 42. Ke3 {[%clk 0:00:38]}  b4 {[%clk 0:00:43]} 43. Bd5 {[%clk 0:00:38]}  Nc5 {[%clk 0:00:40]} 44. Bxf7 {[%clk 0:00:36]}  b3 {[%clk 0:00:40]} 45. Bxg6 {[%clk 0:00:35]}  Kd7 {[%clk 0:00:34]} 46. Bf5+ {[%clk 0:00:32]}  Kc6 {[%clk 0:00:26]} 47. Kd4 {[%clk 0:00:32]}  b2 {[%clk 0:00:23]} 48. Kc3 {[%clk 0:00:28]}  Na4+ {[%clk 0:00:21]} 49. Kb3 {[%clk 0:00:26]}  Nc5+ {[%clk 0:00:11]} 50. Kxb2 {[%clk 0:00:25]}  Kd5 {[%clk 0:00:12]} 51. d7 {[%clk 0:00:23]}  Nxd7 {[%clk 0:00:09]} 52. Bxd7 {[%clk 0:00:23]}  Kxe5 {[%clk 0:00:10]} 53. Kc3 {[%clk 0:00:22]}  Ke4 {[%clk 0:00:10]} 54. Be8 {[%clk 0:00:20]}  Kf3 {[%clk 0:00:11]} 55. Bxh5+ {[%clk 0:00:19]}  Kg2 {[%clk 0:00:10]} 56. g4 {[%clk 0:00:19]}  Kxh2 {[%clk 0:00:10]} 57. g5 {[%clk 0:00:19]}  Kh3 {[%clk 0:00:10]} 58. g6 {[%clk 0:00:19]}  Kh4 {[%clk 0:00:11]} 59. Be2 {[%clk 0:00:19]}  Kg5 {[%clk 0:00:11]} 60. g7 {[%clk 0:00:19]} 1-0


[Site "https://www.chess.com"]

[Event "Titled Tuesday Blitz May 4 2021"]
[White "Ognean, Mihnea-Ionut"]
[Black "Mekhitarian, Krikor Sevag"]
[WhiteFideId "1232347"]
[BlackFideId "2107660"]
[WhiteElo "2012"]
[BlackElo "2598"]
[Result "0-1"]
[Round "04"]
[TimeControl "180+1"]
[Date "2021.05.04"]
[WhiteClock "0:00:14"]
[BlackClock "0:00:08"]

1. e4 {[%clk 0:03:00]}  c5 {[%clk 0:03:00]} 2. Nf3 {[%clk 0:03:00]}  d6 {[%clk 0:02:57]} 3. d4 {[%clk 0:03:00]}  cxd4 {[%clk 0:02:56]} 4. Nxd4 {[%clk 0:03:01]}  Nf6 {[%clk 0:02:55]} 5. Nc3 {[%clk 0:03:01]}  a6 {[%clk 0:02:55]} 6. Be3 {[%clk 0:03:00]}  e6 {[%clk 0:02:52]} 7. f3 {[%clk 0:03:00]}  b5 {[%clk 0:02:50]} 8. Qd2 {[%clk 0:03:00]}  b4 {[%clk 0:02:47]} 9. Na4 {[%clk 0:02:53]}  e5 {[%clk 0:02:34]} 10. Nb3 {[%clk 0:02:44]}  Nc6 {[%clk 0:02:28]} 11. Nb6 {[%clk 0:02:39]}  Rb8 {[%clk 0:02:28]} 12. Nxc8 {[%clk 0:02:39]}  Qxc8 {[%clk 0:02:29]} 13. a4 {[%clk 0:02:35]}  Be7 {[%clk 0:02:20]} 14. a5 {[%clk 0:02:33]}  O-O {[%clk 0:02:19]} 15. Bc4 {[%clk 0:02:10]}  Nd4 {[%clk 0:01:43]} 16. Nxd4 {[%clk 0:02:10]}  Qxc4 {[%clk 0:01:43]} 17. Nf5 {[%clk 0:02:10]}  Rfe8 {[%clk 0:01:43]} 18. Qd3 {[%clk 0:01:50]}  Qc6 {[%clk 0:01:28]} 19. Nxe7+ {[%clk 0:01:19]}  Rxe7 {[%clk 0:01:27]} 20. Bg5 {[%clk 0:01:20]}  Re6 {[%clk 0:01:21]} 21. Bxf6 {[%clk 0:01:18]}  Rxf6 {[%clk 0:01:20]} 22. O-O {[%clk 0:01:18]}  Qc5+ {[%clk 0:00:59]} 23. Kh1 {[%clk 0:01:18]}  d5 {[%clk 0:00:59]} 24. exd5 {[%clk 0:01:12]}  Rd6 {[%clk 0:00:58]} 25. Rfd1 {[%clk 0:00:26]}  Rbd8 {[%clk 0:00:54]} 26. Qe4 {[%clk 0:00:13]}  Rxd5 {[%clk 0:00:31]} 27. Rxd5 {[%clk 0:00:14]}  Rxd5 {[%clk 0:00:32]} 28. h3 {[%clk 0:00:12]}  g6 {[%clk 0:00:29]} 29. Kh2 {[%clk 0:00:12]}  Kg7 {[%clk 0:00:27]} 30. Re1 {[%clk 0:00:11]}  Qxa5 {[%clk 0:00:25]} 31. Re2 {[%clk 0:00:11]}  Qc5 {[%clk 0:00:24]} 32. b3 {[%clk 0:00:11]}  a5 {[%clk 0:00:24]} 33. h4 {[%clk 0:00:10]}  h5 {[%clk 0:00:24]} 34. Qe3 {[%clk 0:00:07]}  Qxe3 {[%clk 0:00:23]} 35. Rxe3 {[%clk 0:00:07]}  f5 {[%clk 0:00:23]} 36. Re2 {[%clk 0:00:07]}  Kf6 {[%clk 0:00:23]} 37. Kg3 {[%clk 0:00:08]}  Ke6 {[%clk 0:00:22]} 38. Kf2 {[%clk 0:00:08]}  Rc5 {[%clk 0:00:23]} 39. Ke3 {[%clk 0:00:09]}  f4+ {[%clk 0:00:18]} 40. Kd2 {[%clk 0:00:06]}  Rd5+ {[%clk 0:00:17]} 41. Ke1 {[%clk 0:00:07]}  Kf5 {[%clk 0:00:18]} 42. Kf2 {[%clk 0:00:07]}  Rd4 {[%clk 0:00:16]} 43. g3 {[%clk 0:00:07]}  fxg3+ {[%clk 0:00:11]} 44. Kxg3 {[%clk 0:00:08]}  Rd1 {[%clk 0:00:10]} 45. Kg2 {[%clk 0:00:07]}  Rd7 {[%clk 0:00:07]} 46. Kg3 {[%clk 0:00:07]}  Rc7 {[%clk 0:00:08]} 47. Kg2 {[%clk 0:00:06]}  Rc3 {[%clk 0:00:08]} 48. Kg3 {[%clk 0:00:07]}  Rc5 {[%clk 0:00:07]} 49. Kg2 {[%clk 0:00:07]}  g5 {[%clk 0:00:08]} 50. hxg5 {[%clk 0:00:07]}  Kxg5 {[%clk 0:00:09]} 51. Kg3 {[%clk 0:00:07]}  h4+ {[%clk 0:00:09]} 52. Kh3 {[%clk 0:00:07]}  Kf4 {[%clk 0:00:09]} 53. Kxh4 {[%clk 0:00:05]}  Kxf3 {[%clk 0:00:09]} 54. Rh2 {[%clk 0:00:05]}  e4 {[%clk 0:00:09]} 55. Rh3+ {[%clk 0:00:06]}  Ke2 {[%clk 0:00:09]} 56. Kg4 {[%clk 0:00:06]}  Kd2 {[%clk 0:00:08]} 57. Kf4 {[%clk 0:00:07]}  e3 {[%clk 0:00:06]} 58. Rxe3 {[%clk 0:00:04]}  Rf5+ {[%clk 0:00:06]} 59. Ke4 {[%clk 0:00:05]}  Re5+ {[%clk 0:00:06]} 60. Kxe5 {[%clk 0:00:05]}  Kxe3 {[%clk 0:00:06]} 61. Kd5 {[%clk 0:00:06]}  Kd2 {[%clk 0:00:07]} 62. Kc4 {[%clk 0:00:06]}  Kxc2 {[%clk 0:00:07]} 63. Kb5 {[%clk 0:00:05]}  Kxb3 {[%clk 0:00:08]} 64. Kxa5 {[%clk 0:00:06]}  Ka3 {[%clk 0:00:07]} 65. Kb5 {[%clk 0:00:07]}  b3 {[%clk 0:00:08]} 66. Kc5 {[%clk 0:00:08]}  b2 {[%clk 0:00:09]} 67. Kd4 {[%clk 0:00:08]}  b1=Q {[%clk 0:00:09]} 68. Kd5 {[%clk 0:00:09]}  Qb4 {[%clk 0:00:09]} 69. Kc6 {[%clk 0:00:10]}  Kb3 {[%clk 0:00:10]} 70. Kc7 {[%clk 0:00:10]}  Qb5 {[%clk 0:00:08]} 71. Kc8 {[%clk 0:00:11]}  Qb6 {[%clk 0:00:08]} 72. Kd7 {[%clk 0:00:11]}  Kc4 {[%clk 0:00:08]} 73. Kc8 {[%clk 0:00:12]}  Qa7 {[%clk 0:00:08]} 74. Kd8 {[%clk 0:00:12]}  Kd5 {[%clk 0:00:08]} 75. Ke8 {[%clk 0:00:13]}  Ke6 {[%clk 0:00:09]} 76. Kf8 {[%clk 0:00:14]}  Qf7# {[%clk 0:00:08]} 0-1


[Site "https://www.chess.com"]

[Event "Titled Tuesday Blitz May 4 2021"]
[White "Omk124"]
[Black "De Waele, Warre"]
[BlackFideId "241156"]
[WhiteElo "2604"]
[BlackElo "2183"]
[Result "0-1"]
[Round "04"]
[TimeControl "180+1"]
[Date "2021.05.04"]
[WhiteClock "0:00:37"]
[BlackClock "0:00:29"]

1. e4 {[%clk 0:03:00]}  e5 {[%clk 0:02:59]} 2. Nf3 {[%clk 0:03:01]}  Nc6 {[%clk 0:03:00]} 3. Bc4 {[%clk 0:03:01]}  Nf6 {[%clk 0:03:00]} 4. d3 {[%clk 0:03:01]}  Bc5 {[%clk 0:03:00]} 5. c3 {[%clk 0:03:02]}  d6 {[%clk 0:03:00]} 6. Nbd2 {[%clk 0:03:02]}  O-O {[%clk 0:02:59]} 7. Nf1 {[%clk 0:03:02]}  d5 {[%clk 0:02:45]} 8. exd5 {[%clk 0:03:02]}  Nxd5 {[%clk 0:02:46]} 9. Ng3 {[%clk 0:02:56]}  Kh8 {[%clk 0:02:42]} 10. Ne4 {[%clk 0:02:54]}  Be7 {[%clk 0:02:42]} 11. O-O {[%clk 0:02:53]}  Bg4 {[%clk 0:02:39]} 12. h3 {[%clk 0:02:53]}  Bh5 {[%clk 0:02:39]} 13. Ng3 {[%clk 0:02:53]}  Bg6 {[%clk 0:02:38]} 14. Re1 {[%clk 0:02:52]}  Qd6 {[%clk 0:02:22]} 15. Ne4 {[%clk 0:02:46]}  Qd7 {[%clk 0:02:22]} 16. Ng3 {[%clk 0:02:38]}  Qd6 {[%clk 0:01:59]} 17. Bd2 {[%clk 0:02:16]}  a6 {[%clk 0:01:57]} 18. b4 {[%clk 0:02:16]}  Nb6 {[%clk 0:01:54]} 19. Be3 {[%clk 0:02:06]}  Nxc4 {[%clk 0:01:34]} 20. dxc4 {[%clk 0:02:07]}  Qe6 {[%clk 0:01:32]} 21. Qe2 {[%clk 0:02:03]}  Rad8 {[%clk 0:01:29]} 22. Rad1 {[%clk 0:02:01]}  Rxd1 {[%clk 0:01:09]} 23. Rxd1 {[%clk 0:02:01]}  Rd8 {[%clk 0:01:09]} 24. Rxd8+ {[%clk 0:01:57]}  Nxd8 {[%clk 0:01:09]} 25. Nd2 {[%clk 0:01:57]}  f5 {[%clk 0:01:02]} 26. f4 {[%clk 0:01:47]}  exf4 {[%clk 0:00:53]} 27. Bxf4 {[%clk 0:01:48]}  Qxe2 {[%clk 0:00:51]} 28. Nxe2 {[%clk 0:01:49]}  Ne6 {[%clk 0:00:52]} 29. Be5 {[%clk 0:01:48]}  Kg8 {[%clk 0:00:51]} 30. Nd4 {[%clk 0:01:47]}  Nxd4 {[%clk 0:00:44]} 31. Bxd4 {[%clk 0:01:47]}  Kf7 {[%clk 0:00:43]} 32. Nf3 {[%clk 0:01:47]}  Ke6 {[%clk 0:00:43]} 33. Bxg7 {[%clk 0:01:47]}  f4 {[%clk 0:00:41]} 34. Kf2 {[%clk 0:01:42]}  Bd3 {[%clk 0:00:41]} 35. c5 {[%clk 0:01:41]}  Bc4 {[%clk 0:00:41]} 36. a3 {[%clk 0:01:41]}  Kf5 {[%clk 0:00:40]} 37. Nd2 {[%clk 0:01:30]}  Bd5 {[%clk 0:00:40]} 38. Bd4 {[%clk 0:01:29]}  Bh4+ {[%clk 0:00:39]} 39. Kf1 {[%clk 0:01:26]}  Be7 {[%clk 0:00:35]} 40. Kf2 {[%clk 0:01:24]}  Bh4+ {[%clk 0:00:33]} 41. Kg1 {[%clk 0:01:25]}  Be1 {[%clk 0:00:33]} 42. Nf3 {[%clk 0:01:22]}  Bg3 {[%clk 0:00:29]} 43. Ne5 {[%clk 0:01:15]}  Ke4 {[%clk 0:00:26]} 44. Kf1 {[%clk 0:01:11]}  Bh4 {[%clk 0:00:24]} 45. Ke2 {[%clk 0:01:10]}  Bf6 {[%clk 0:00:23]} 46. Nf3 {[%clk 0:01:03]}  Be7 {[%clk 0:00:22]} 47. Kd2 {[%clk 0:01:00]}  Kf5 {[%clk 0:00:22]} 48. Ke2 {[%clk 0:01:01]}  Ke4 {[%clk 0:00:22]} 49. Nd2+ {[%clk 0:01:01]}  Kf5 {[%clk 0:00:22]} 50. Kf1 {[%clk 0:00:56]}  Bh4 {[%clk 0:00:21]} 51. Bf2 {[%clk 0:00:51]}  Be7 {[%clk 0:00:22]} 52. a4 {[%clk 0:00:46]}  Bf6 {[%clk 0:00:22]} 53. c4 {[%clk 0:00:46]}  Be6 {[%clk 0:00:20]} 54. Ke2 {[%clk 0:00:40]}  Bc3 {[%clk 0:00:20]} 55. b5 {[%clk 0:00:39]}  c6 {[%clk 0:00:20]} 56. bxc6 {[%clk 0:00:32]}  bxc6 {[%clk 0:00:19]} 57. Kd3 {[%clk 0:00:27]}  Bxd2 {[%clk 0:00:20]} 58. Kxd2 {[%clk 0:00:28]}  Bxc4 {[%clk 0:00:20]} 59. Kc3 {[%clk 0:00:28]}  Bf1 {[%clk 0:00:20]} 60. g3 {[%clk 0:00:26]}  Bxh3 {[%clk 0:00:20]} 61. gxf4 {[%clk 0:00:26]}  Kxf4 {[%clk 0:00:21]} 62. Kb4 {[%clk 0:00:26]}  Ke5 {[%clk 0:00:20]} 63. Ka5 {[%clk 0:00:26]}  Bf1 {[%clk 0:00:20]} 64. Kb6 {[%clk 0:00:26]}  Kd5 {[%clk 0:00:20]} 65. a5 {[%clk 0:00:27]}  Bb5 {[%clk 0:00:20]} 66. Bh4 {[%clk 0:00:27]}  Ke5 {[%clk 0:00:20]} 67. Be1 {[%clk 0:00:28]}  Kf4 {[%clk 0:00:21]} 68. Bh4 {[%clk 0:00:28]}  Kg4 {[%clk 0:00:22]} 69. Be1 {[%clk 0:00:27]}  h5 {[%clk 0:00:22]} 70. Bc3 {[%clk 0:00:22]}  h4 {[%clk 0:00:22]} 71. Be5 {[%clk 0:00:22]}  h3 {[%clk 0:00:22]} 72. Kc7 {[%clk 0:00:23]}  Kf3 {[%clk 0:00:22]} 73. Kd6 {[%clk 0:00:24]}  Kg2 {[%clk 0:00:23]} 74. Bf4 {[%clk 0:00:22]}  h2 {[%clk 0:00:23]} 75. Bxh2 {[%clk 0:00:23]}  Kxh2 {[%clk 0:00:24]} 76. Ke5 {[%clk 0:00:24]}  Kg2 {[%clk 0:00:24]} 77. Kd4 {[%clk 0:00:25]}  Kf3 {[%clk 0:00:25]} 78. Kc3 {[%clk 0:00:26]}  Ke4 {[%clk 0:00:26]} 79. Kb4 {[%clk 0:00:26]}  Kd5 {[%clk 0:00:26]} 80. Kb3 {[%clk 0:00:27]}  Kxc5 {[%clk 0:00:27]} 81. Kb2 {[%clk 0:00:28]}  Kb4 {[%clk 0:00:27]} 82. Ka1 {[%clk 0:00:28]}  Kxa5 {[%clk 0:00:28]} 83. Kb2 {[%clk 0:00:29]}  Kb4 {[%clk 0:00:28]} 84. Ka1 {[%clk 0:00:30]}  a5 {[%clk 0:00:29]} 85. Kb1 {[%clk 0:00:31]}  Kc3 {[%clk 0:00:29]} 86. Ka1 {[%clk 0:00:32]}  c5 {[%clk 0:00:30]} 87. Kb1 {[%clk 0:00:33]}  c4 {[%clk 0:00:31]} 88. Ka1 {[%clk 0:00:33]}  Kd2 {[%clk 0:00:31]} 89. Ka2 {[%clk 0:00:34]}  c3 {[%clk 0:00:31]} 90. Ka1 {[%clk 0:00:35]}  c2 {[%clk 0:00:31]} 91. Ka2 {[%clk 0:00:36]}  Bc4+ {[%clk 0:00:31]} 92. Ka3 {[%clk 0:00:36]}  c1=Q+ {[%clk 0:00:29]} 93. Ka4 {[%clk 0:00:37]}  Qa1# {[%clk 0:00:29]} 0-1


[Site "https://www.chess.com"]

[Event "Titled Tuesday Blitz May 4 2021"]
[White "Onyshchuk, Volodymyr"]
[Black "Avila Pavas, Santiago"]
[WhiteFideId "14114038"]
[BlackFideId "4437128"]
[WhiteElo "2605"]
[BlackElo "2244"]
[Result "0-1"]
[Round "04"]
[TimeControl "180+1"]
[Date "2021.05.04"]
[WhiteClock "0:00:26"]
[BlackClock "0:00:32"]

1. Nf3 {[%clk 0:03:00]}  Nf6 {[%clk 0:03:00]} 2. g3 {[%clk 0:03:01]}  g6 {[%clk 0:03:00]} 3. Bg2 {[%clk 0:03:02]}  Bg7 {[%clk 0:03:01]} 4. O-O {[%clk 0:03:02]}  O-O {[%clk 0:03:02]} 5. d3 {[%clk 0:03:03]}  c5 {[%clk 0:03:01]} 6. c4 {[%clk 0:03:01]}  Nc6 {[%clk 0:03:02]} 7. Nc3 {[%clk 0:03:02]}  b6 {[%clk 0:02:53]} 8. Rb1 {[%clk 0:02:57]}  Bb7 {[%clk 0:02:53]} 9. a3 {[%clk 0:02:55]}  d5 {[%clk 0:02:48]} 10. cxd5 {[%clk 0:02:54]}  Nxd5 {[%clk 0:02:48]} 11. Nxd5 {[%clk 0:02:54]}  Qxd5 {[%clk 0:02:49]} 12. b4 {[%clk 0:02:54]}  cxb4 {[%clk 0:02:49]} 13. axb4 {[%clk 0:02:54]}  Rac8 {[%clk 0:02:32]} 14. Bb2 {[%clk 0:02:45]}  Bxb2 {[%clk 0:02:24]} 15. Rxb2 {[%clk 0:02:45]}  Rfd8 {[%clk 0:02:24]} 16. Qa1 {[%clk 0:02:36]}  a6 {[%clk 0:02:10]} 17. h4 {[%clk 0:02:34]}  Nd4 {[%clk 0:01:55]} 18. Re1 {[%clk 0:02:14]}  Nc2 {[%clk 0:01:49]} 19. Qb1 {[%clk 0:01:59]}  Nxe1 {[%clk 0:01:45]} 20. Nxe1 {[%clk 0:01:59]}  Qd7 {[%clk 0:01:46]} 21. Bxb7 {[%clk 0:01:56]}  Qxb7 {[%clk 0:01:47]} 22. Nf3 {[%clk 0:01:55]}  Qc7 {[%clk 0:01:44]} 23. Kg2 {[%clk 0:01:54]}  Qc1 {[%clk 0:01:33]} 24. Qa2 {[%clk 0:01:54]}  Rc3 {[%clk 0:01:20]} 25. Ng5 {[%clk 0:01:46]}  Rf8 {[%clk 0:01:16]} 26. Ne4 {[%clk 0:01:44]}  Rcc8 {[%clk 0:01:15]} 27. h5 {[%clk 0:01:37]}  Qc6 {[%clk 0:01:07]} 28. h6 {[%clk 0:01:27]}  Qe6 {[%clk 0:00:53]} 29. Qxe6 {[%clk 0:01:24]}  fxe6 {[%clk 0:00:54]} 30. Ra2 {[%clk 0:01:24]}  Ra8 {[%clk 0:00:53]} 31. Ng5 {[%clk 0:01:21]}  Rf6 {[%clk 0:00:48]} 32. Rc2 {[%clk 0:01:20]}  a5 {[%clk 0:00:44]} 33. bxa5 {[%clk 0:01:16]}  bxa5 {[%clk 0:00:45]} 34. Rc7 {[%clk 0:01:17]}  Rf5 {[%clk 0:00:32]} 35. f4 {[%clk 0:01:16]}  a4 {[%clk 0:00:32]} 36. Rxe7 {[%clk 0:01:15]}  Rxg5 {[%clk 0:00:31]} 37. fxg5 {[%clk 0:01:09]}  a3 {[%clk 0:00:32]} 38. Rg7+ {[%clk 0:00:26]}  Kh8 {[%clk 0:00:32]} 39. Rf7 {[%clk 0:00:26]}  a2 {[%clk 0:00:32]} 0-1


[Site "https://www.chess.com"]